Cogmind - Beta 15 @@@ ROGUE MODE // 2025.06.14 @ 17:22:57 Player: Chair Result: Destroyed by as-43329 with Assembled F-torch Performance ------------- Evolutions (0) 0 Regions Visited (2) 400 Robots Destroyed (8) 40 Value Destroyed (232) 232 Prototype IDs (0) 0 Alien Tech Used (0) 0 Bonus (0) 0 TOTAL SCORE: 672 Bonus ------- None Cogmind --------- Core Integrity 0/250 Matter 219/300 Energy 91/100 System Corruption 0% Temperature Cool (30) Movement Core (50) Location -10/Mines Parts ------- > --- POWER (1) -------- (None) > --- PROPULSION (2) --- (None) > --- UTILITY (2) ------ (None) > --- WEAPON (2) ------- Medium Laser Small Laser > --- INVENTORY (5) ---- Light Assault Rifle Peak State ------------ > --- POWER ------------ (None) > --- PROPULSION ------- Light Treads Light Treads > --- UTILITY ---------- (None) > --- WEAPON ----------- Medium Laser Light Assault Rifle > --- INVENTORY -------- (None) [Rating: 4] Favorites ----------- Power None Propulsion Light Treads Treads Light Treads Utility None Weapon Medium Laser Energy Gun Medium Laser Ballistic Gun Light Assault Rifle Build | -11 -10 -10 ------- Run | Yrd Mat Min Slots Evolved . | . . . Power . | . . . Propulsion . | . . . Utility . | . . . Weapon . | . . . Parts Attached 5 | 4 . 1 Power . | . . . Engine . | . . . Core . | . . . Reactor . | . . . Propulsion 2 | 2 . . Treads 2 | 2 . . Leg . | . . . Wheel . | . . . Hover . | . . . Flight . | . . . Utility . | . . . Device . | . . . Storage . | . . . Processor . | . . . Hackware . | . . . Protection . | . . . Artifact . | . . . Weapon 3 | 2 . 1 Energy Gun 2 | 1 . 1 Energy Cannon . | . . . Ballistic Gun 1 | 1 . . Ballistic Cannon . | . . . Launcher . | . . . Special Weapon . | . . . Impact Weapon . | . . . Slashing Weapon . | . . . Piercing Weapon . | . . . Special Melee Weapon . | . . . Unidentified Prototypes . | . . . Parts Lost 3 | . . 3 Power . | . . . Propulsion 2 | . . 2 Utility . | . . . Weapon 1 | . . 1 Highest Loss Streak 3 | . . 3 To Critical Strikes . | . . . Average Backups . | . 1 . Power . | . . . Propulsion . | . . . Utility . | . . . Weapon . | . 1 . Tool/Special . | . . . Unused Backups 1 | . . 1 Power . | . . . Propulsion . | . . . Utility . | . . . Weapon 1 | . . 1 Tool/Special . | . . . Average Slot Usage (%) 48 | . 57 43 Treads 20 | . 28 14 Energy Gun 18 | . 14 21 Ballistic Gun 9 | . 14 7 Peak Build Rating 4 | 4 4 4 Average Rating 3 | 2 4 3 On Entrance 2 | . 4 4 Naked Turns . | . . . Heaviest Build 3 | 3 3 3 Greatest Support 40 | 40 40 40 Greatest Overweight (x) . | . . . Average Overweight (x) . | . . . Largest Inventory Capacity 5 | 5 5 5 Average Capacity 5 | 5 5 5 Most Carried 1 | 1 1 1 Average Carried . | . 1 . Final Capacity 5 | 5 5 5 Final Carried 1 | 1 1 1 Class Distribution -------------------- 100% | Mutant Dominant Class ---------------- Mutant | -10/Materials Mutant | -10/Mines Resources | -11 -10 -10 ----------- Run | Yrd Mat Min Matter Collected 189 | 135 . 54 Remotely . | . . . Salvage Created 272 | . 83 189 Parts 15 | . 5 10 Haulers Intercepted . | . . . Recyclers Shooed . | . . . Parts Field Recycled . | . . . Retrieved Matter . | . . . Parts Self-Destructed . | . . . Prevented . | . . . Kills | -11 -10 -10 ------- Run | Yrd Mat Min Combat Hostiles Destroyed 8 | . 2 6 Guns 8 | . 2 6 Classes Destroyed 3 | . 1 2 Swarmer 3 | . . 3 Grunt 4 | . 2 2 Demolisher 1 | . . 1 Best Kill Streak 3 | . 2 3 Combat Bots Only 3 | . 2 3 Max Kills in Single Turn 1 | . 1 1 Gunslinging . | . . . Exploded . | . . . Melee . | . . . Uniques/NPCs Destroyed . | . . . Combat | -11 -10 -10 -------- Run | Yrd Mat Min Hostile Shots Fired 68 | . 7 61 Missed 22 | . 3 19 Hits 46 | . 4 42 Projectile 46 | . 4 42 AOE 6 | . . 6 Critical Strikes 3 | . . 3 Damage Taken 696 | . 43 653 Core 257 | . 11 246 Absorbed by Shields . | . . . Core Remaining (%) 100 | 100 . . Volleys Fired 41 | . 5 36 Largest 2 | . 2 2 Hottest 90 | . 70 90 Shots Fired 81 | . 10 71 Gun 81 | . 10 71 Cannon . | . . . Launcher . | . . . Special . | . . . Kinetic 35 | . 5 30 Thermal 46 | . 5 41 Explosive . | . . . Electromagnetic . | . . . Robot Hit Streak 8 | . 8 8 Robot Miss Streak 2 | . . 2 Penetration Max . | . . . Secondary Targets 2 | . . 2 Max Gunslinging Chain 1 | . . 1 Shots Hit Robots 56 | . 8 48 Core Hits 19 | . 4 15 Critical Kills . | . . . Critical Parts Destroyed . | . . . Critical Strikes 2 | . 1 1 Burn 2 | . 1 1 Melee Attacks . | . . . Impact . | . . . Slashing . | . . . Piercing . | . . . Sneak Attacks . | . . . Combat Hostiles . | . . . Follow-up Attacks . | . . . Damage Inflicted 593 | . 85 508 Guns 593 | . 85 508 Cannons . | . . . Explosions . | . . . Melee . | . . . Ramming . | . . . Kinetic 180 | . 24 156 Thermal 413 | . 61 352 Explosive . | . . . Electromagnetic . | . . . Impact . | . . . Slashing . | . . . Piercing . | . . . Highest Corruption . | . . . Average Corruption . | . . . Corruption Purged . | . . . Corruption Blocked . | . . . Overload Shots . | . . . Overflow Damage . | . . . Projectiles . | . . . Explosions . | . . . Melee . | . . . Knockbacks . | . . . Impact . | . . . Kinetic . | . . . Secondary . | . . . Self-Inflicted Damage . | . . . Shots . | . . . Rammed . | . . . Targets Rammed . | . . . Kicked . | . . . Crushed . | . . . Highest Temperature 204 | . 52 204 Average Temperature 93 | . 21 101 Received Heat Transfer 314 | . 24 290 Siege Activations . | . . . Martial Activations . | . . . Shielding Activations . | . . . Robots Disrupted . | . . . Combat Hostiles . | . . . Robots Corrupted . | . . . Combat Hostiles . | . . . Parts Fried . | . . . Impact Corruptions . | . . . Robots Melted . | . . . Combat Hostiles . | . . . Parts Melted 1 | . . 1 Heat Transferred 1370 | . 259 1111 Parts Sabotaged . | . . . Parts Stolen . | . . . Parts Stripped . | . . . Power Chain Reactions . | . . . Alert | -11 -10 -10 ------- Run | Yrd Mat Min Maximum Alert Level . | . . . Low Security (%) 100 | 100 100 100 Level 1 . | . . . Level 2 . | . . . Level 3 . | . . . Level 4 . | . . . Level 5 . | . . . High Security . | . . . Max Security . | . . . Peak Influence 132 | . 40 132 Initial 7 | . . 7 Average 42 | . 15 72 Influence Increases 215 | . 50 165 Destroy 0b10 Robot/C 160 | . 40 120 Destroy Leader 40 | . 10 30 Lose Combat Pursuer 15 | . . 15 Influence Decreases 163 | . 30 133 Entered New Map 13 | . . 13 Time Decay 120 | . 30 90 Lost Part 30 | . . 30 Squads Dispatched 1 | . 1 . Investigation 1 | . 1 . Extermination . | . . . Reinforcement . | . . . Assault . | . . . Garrison . | . . . Intercept . | . . . Searches Triggered . | . . . Construction Impeded . | . . . Haulers Reinforced . | . . . Active Scanning Responses . | . . . Cargo Convoy Interrupts . | . . . Stealth | -11 -10 -10 --------- Run | Yrd Mat Min Distress Signals . | . . . Communications Jammed . | . . . Distress Signals . | . . . Times Spotted 14 | . 2 12 Peak Tracking Total 5 | . 1 5 Tactical Retreats 2 | . . 2 Traps | -11 -10 -10 ------- Run | Yrd Mat Min Traps Triggered . | . . . Indirectly . | . . . Trap Hack Attempts . | . . . Triggered . | . . . Disarmed . | . . . Reprogrammed . | . . . Reused . | . . . Traps Extracted . | . . . Installed . | . . . Triggered . | . . . Machines | -11 -10 -10 ---------- Run | Yrd Mat Min Machines Disabled . | . . . Max in Single Turn . | . . . Machines Repaired . | . . . Machines Dismantled . | . . . Machines Sabotaged . | . . . Overloaded Fab Kills . | . . . Hacking | -11 -10 -10 --------- Run | Yrd Mat Min Machines Accessed 2 | . 2 . Terminals 2 | . 2 . Fabricators . | . . . Repair Stations . | . . . Recycling Units . | . . . Scanalyzers . | . . . Garrison Access . | . . . Total Hacks 5 | . 5 . Successful . | . . . Failed 5 | . 5 . Catastrophic 3 | . 3 . Database Lockouts . | . . . Manual 5 | . 5 . Terminals 5 | . 5 . Fabricators . | . . . Repair Stations . | . . . Recycling Units . | . . . Scanalyzers . | . . . Garrison Access . | . . . Terminal Hacks . | . . . Fabricator Hacks . | . . . Repair Station Hacks . | . . . Recycling Unit Hacks . | . . . Scanalyzer . | . . . Garrison Access Hacks . | . . . Unauthorized Hacks . | . . . Terminals . | . . . Fabricators . | . . . Repair Stations . | . . . Recycling Units . | . . . Scanalyzers . | . . . Garrison Access . | . . . Data Cores Recovered . | . . . Used . | . . . Hacking Detections 2 | . 2 . Full Trace Events 2 | . 2 . Feedback Events . | . . . Feedback Blocked . | . . . Robot Schematics Acquired . | . . . Robots Built . | . . . Authchips . | . . . Time . | . . . Total Robot Build Rating . | . . . Part Schematics Acquired . | . . . Parts Built . | . . . Authchips . | . . . Time . | . . . Total Part Build Rating . | . . . Parts Repaired . | . . . Time . | . . . Parts Recycled . | . . . Recycled Matter . | . . . Retrieved Matter . | . . . Retrieved Components . | . . . Parts Scanalyzed . | . . . Part Schematics Acquired . | . . . Parts Damaged . | . . . Bothacking | -11 -10 -10 ------------ Run | Yrd Mat Min Used RIF Installer . | . . . Robots Hacked . | . . . Non-combat . | . . . Combat . | . . . Robot Hacks Applied . | . . . Relay Couplers Released . | . . . Fabnet Peak Effective % . | . . . Robots Rewired . | . . . Allies Hacked . | . . . Hacks Repelled . | . . . Allies | -11 -10 -10 -------- Run | Yrd Mat Min Total Allies . | . . . Largest Group . | . . . Highest-Rated Group . | . . . Highest-Rated Ally . | . . . Total Orders . | . . . Ally Attacks . | . . . Total Damage . | . . . Kills . | . . . Allies Corrupted . | . . . Allies Melted . | . . . Intel | -11 -10 -10 ------- Run | Yrd Mat Min Active Infowar (turns) . | . . . Robot Analysis Total . | . . . Derelict Logs Recovered . | . . . Drone Launches . | . . . Drone Recoveries . | . . . Exploration | -11 -10 -10 ------------- Run | Yrd Mat Min Turns Passed 374 | 49 132 193 Spaces Moved 195 | 31 70 94 Core 95 | 6 . 89 Treads 100 | 25 70 5 Legs . | . . . Wheels . | . . . Hover . | . . . Flight . | . . . Fastest Speed 50 | 50 160 50 Average Speed 106 | 138 160 55 Slowest Speed 160 | 160 160 160 Overloaded Moves . | . . . Propulsion Burnouts . | . . . Robots Hopped . | . . . Potential Cave-ins . | . . . Cave-ins Triggered . | . . . Exploration Rate (%) 14 | 4 22 16 Regions Visited 2 Branch Regions 1 Pre-discovered Areas . | . . . Known Exits Taken . | . . . Unknown Exits Taken 2 | 1 1 . Scrap Searched . | . . . Spaces Dug . | . . . Terrain Destroyed . | . . . Melee . | . . . Projectile . | . . . AOE . | . . . Terrain Rammed . | . . . Walls Destroyed . | . . . Machines Disabled . | . . . Actions | -11 -10 -10 --------- Run | Yrd Mat Min Total 286 | 35 81 170 Wait 45 | . 7 38 Move 193 | 30 69 94 Hop . | . . . Pick Up 2 | 1 . 1 Fast Attach 4 | 4 . . Attach 1 | . . 1 Detach . | . . . Swap . | . . . Drop . | . . . Fire 41 | . 5 36 Melee . | . . . Ram . | . . . Kick . | . . . Crush . | . . . Escape Stasis . | . . . Rewire . | . . . Trap . | . . . Miscellaneous . | . . . Route ------- -11/Scrapyard -10/Materials -10/Mines History --------- Turn | Location | Event 2 | -11/Scrapyard | Met Revision 17 6 | -11/Scrapyard | Discovered new exit (range 15) 50 | -11/Scrapyard | Entered Materials 156 | -10/Materials | Discovered new exit (range 16) 182 | -10/Materials | Entered Mines 183 | -10/Mines | Assembled infested the area 256 | -10/Mines | Core integrity fell below 50% 285 | -10/Mines | Core integrity fell below 20% 300 | -10/Mines | Build established: Mutant 319 | -10/Mines | Lost 3 parts (2n1w) 375 | -10/Mines | Destroyed by as-43329 with Assembled F-torch Last Messages --------------- 00229_ Imp. Heat Sink melted. 00229_ G-47 Trooper destroyed. 00229_ Switching to secondary target: G-34 Mercenary. 00240_ C-30 ARC bursts open, deploying its payload. 00240_ D-53 Grenadier unfolds itself. 00272_ G-34 Mercenary destroyed. 00275_ D-53 Grenadier destroyed. 00276_ Lgt. Assault Rifle destroyed. 00278_ Lgt. Treads destroyed. 00281_ The unstable cave ceiling collapses. 00288_ Lgt. Treads destroyed. 00290_ D-53 Grenadier destroyed. 00291_ The unstable cave ceiling collapses. 00294_ Acquired Lgt. Assault Rifle. 00299_ R-06 Scavenger collects Launcher Guidance Computer. 00307_ U-05 Engineer lays Concrete. 00309_ The unstable cave ceiling collapses. 00309_ U-05 Engineer lays Concrete. 00363_ The unstable cave ceiling collapses. 00368_ Acquired 54 matter. Map ----- +----------------------------------------------------+ | ?????????????????????????????????????????????????? | | ?????????????????????????????????????????????????? | | ?????????????????????????????????????????##??????? | | ????????????????????????????????????????# ??????? | | ???????????????????????????????????????? #??????? | | ????????????????????????????????????????# #????##? | | ????????????????????????????????????????# #??? ## | | ????????????????????????????????????????# #??? # | | ???????????????????????????????########## #??? | | ???????????????????????????????# ## #??# | | ???????????????????????????##### ## ### | | ??????????????????????????## ## ## | | ????????????????????????### ## ## # | | ????????????????????????# # # * # #? | | ???????????????????????## # ## ##### #? | | ??????????????????##???# %% ## ### ### #? | | ??????????????????# #??##! ## #?# #? | | ??????????????????# #?##%|### # ##= ####?# #? | | ??????????????????# ## !%! *%! #???## ##? | | ???????????????????# |=* = #?????###?? | | ???????????????????# ! ## # ###?????????? | | ???????????????????# ## ### ###?????????? | | ???????????????????# ### #?# #???????????? | | ???????????????????## ### #?# #???????????? | | ????????????????????# a### ### #???????????? | | ????????????????????# @### #???????????? | | ????????????????????## ### ######???????????? | | ?????????????????????## #####????????????????? | | ??????????????????????### #???????????????????? | | ????????????????????????## #??????????????????? | | ?????????????????????????? #?????????????????? | | ??????????????????????????# a =#????????????????? | | ???????????????????????????# !%#????????????????? | | ????????????????????????????# =#????????????????? | | ?????????????????????????????# u????????????????? | | ?????????????????????????????? %! ???????????????? | | ??????????????????????????????? ??????????????? | | ??????????????????????????????? ??????????????? | | ???????????????????????????????? ????????????????? | | ?????????????????????????????????????????????????? | | ?????????????????????????????????????????????????? | | ?????????????????????????????????????????????????? | | ?????????????????????????????????????????????????? | | ?????????????????????????????????????????????????? | | ?????????????????????????????????????????????????? | | ?????????????????????????????????????????????????? | | ?????????????????????????????????????????????????? | | ?????????????????????????????????????????????????? | | ?????????????????????????????????????????????????? | | ?????????????????????????????????????????????????? | +----------------------------------------------------+ Best States ------------- Heat Dissipation 25 Energy Generation 5 Energy Capacity 100 Matter Stores 219 Matter Capacity 300 Sight Range 16 Terrain Scan Density 10 Evasion (%) 50 Recoil Reduction 2 Item Schematics ----------------- None Robot Schematics ------------------ None Fabricated ------------ Nothing Repaired ---------- Nothing Alien Tech Used ----------------- None Achievements -------------- None Challenges ------------ None Game ------ Seed NavigationAlertThruster Manual? 0 Play Time 00:05:26 Cumulative 247.5 hours Start 2025.06.14 @ 17:17:42 End 2025.06.14 @ 17:22:57 Sessions 1 Manual Loads 0 Difficulty Rogue Special Mode None Game No. 190 Rogue 190 Adventurer 0 Explorer 0 Win Type - Total 15 Types 15/0/0/0/0/0/0/0/0/0 Lore% 72 Gallery% 70 Achievement% 65 Wizard Run 0 Options --------- Layout 0 ASCII 0 Keyboard 1 Movement Numpad Keybinds 0 Fullscreen 2 Font 36/Smallcaps Map View 76x50 Zoom Use 0% Tactical HUD 1 Map Filters NONE Filters NONE Steam 1 RUN: 3b0d6a68-d207-400b-98f8-8e97ec56cf41